[Event "15th Governor Cup 2019"]
[Site "Khanty-Mansiysk"]
[Date "2019.11.25"]
[Round "9.16"]
[White "Skatchkov, Valery"]
[Black "Maltsevskaya, Aleksandra"]
[Result "1-0"]
[ECO "E68"]
[WhiteElo "2309"]
[BlackElo "2332"]
[Annotator "NA RC"]
[PlyCount "107"]
[EventDate "2019.11.19"]
[EventType "swiss"]
[EventCountry "RUS"]
[SourceTitle "playchess.com"]
[Source "ChessBase"]
[SourceQuality "1"]
[TimeControl "5400+30"]

1. c4 {[%emt 0:00:00]} Nf6 {[%emt 0:00:00]} 2. Nc3 {[%emt 0:00:00]} g6 {[%emt 0:00:05]} 3. Nf3 {[%emt 0:00:00]} Bg7 {[%emt 0:00:07]} 4. d4 {[%emt 0:00:01]} O-O {[%emt 0:00:10]} 5. g3 {[%emt 0:00:03]} d6 {[%emt 0:00:25]} 6. Bg2 {[%emt 0:00:04]} Nbd7 {[%emt 0:00:05]} 7. O-O {[%emt 0:00:05]} e5 {[%emt 0:00:08]} 8. e4 {[%emt 0:00:03]} a6 {[%emt 0:04:33]} 9. Qc2 {[%emt 0:03:51]} exd4 {[%emt 0:04:04]} 10. Nxd4 {[%emt 0:00:41]} Re8 {[%emt 0:00:45]} 11. Rd1 {[%emt 0:02:45]} Ne5 {[%emt 0:00:59]} 12. c5 {[%emt 0:01:31]} Bd7 {[%emt 0:04:49]} 13. f4 {[%emt 0:00:37]} Bg4 {[%emt 0:15:57]} 14. fxe5 {[%emt 0:00:16]} Bxd1 {[%emt 0:00:06]} 15. Qxd1 {[%emt 0:00:46]} Rxe5 {[%emt 0:01:42]} 16. cxd6 {[%emt 0:35:52]} cxd6 {[%emt 0:00:18]} 17. Bf4 {[%emt 0:01:07]} Re8 {[%emt 0:00:26]} 18. Nb3 {[%emt 0:09:22]} Qb6+ {[%emt 0:04:00]} 19. Kh1 {[%emt 0:00:20]} Re6 {[%emt 0:02:08]} 20. Qd4 {[%emt 0:07:03]} Qc7 {[%emt 0:05:37]} 21. Qd2 {[%emt 0:00:28]} Qb6 {[%emt 0:04:06]} 22. Qd4 {[%emt 0:07:12]} Qc7 {[%emt 0:00:09]} 23. Qd2 {[%emt 0:01:30]} Qb6 {[%emt 0:00:09]} 24. Rf1 {[%emt 0:03:23]} Rae8 {[%emt 0:01:28]} 25. Be3 {[%emt 0:03:37]} Qc7 {[%emt 0:00:45]} 26. Nd4 {[%emt 0:01:17]} Re5 {[%emt 0:02:10]} 27. Bf4 {[%emt 0:00:48]} Rh5 {[%emt 0:06:54]} 28. Bf3 {[%emt 0:02:19]} Rc5 {[%emt 0:02:39]} 29. Nb3 {[%emt 0:00:05]} Rc6 {[%emt 0:00:16]} 30. Bg5 {[%emt 0:00:36]} Re5 {[%emt 0:05:59]} 31. Qf4 {[%emt 0:05:26]} Ne8 {[%emt 0:24:10]} 32. Nd5 {[%emt 0:00:06]} Qd7 {[%emt 0:00:06]} 33. Bg4 {[%emt 0:00:10]} f5 {[%emt 0:00:10]} 34. exf5 {[%emt 0:00:04]} Qf7 {[%emt 0:00:25]} 35. Ne3 {[%emt 0:04:39]} Bf6 {[%emt 0:03:55]} 36. fxg6 {[%emt 0:00:50]} Qxg6 {[%emt 0:00:05]} 37. Bxf6 {[%emt 0:02:43]} Qxf6 {[%emt 0:04:43]} 38. Bf5 {[%emt 0:00:04]} Qe7 {[%emt 0:00:55]} 39. Nd4 {[%emt 0:04:23]} Ng7 {[%emt 0:02:53]} 40. Nxc6 {[%emt 0:00:46]} bxc6 {[%emt 0:00:04]} 41. Ng4 {[%emt 0:00:06]} Re1 {[%emt 0:00:50]} 42. Be6+ {[%emt 0:00:34]} Rxe6 {[%emt 0:00:54]} 43. Nh6+ {[%emt 0:00:03]} Rxh6 {[%emt 0:00:08]} 44. Qxh6 {[%emt 0:00:05]} Qe4+ {[%emt 0:01:03]} 45. Kg1 {[%emt 0:00:05]} Qd4+ {[%emt 0:00:06]} 46. Rf2 {[%emt 0:00:09]} Qd1+ {[%emt 0:00:05]} 47. Kg2 {[%emt 0:00:03]} Qd5+ {[%emt 0:00:06]} 48. Kh3 {[%emt 0:01:04]} Ne6 {[%emt 0:00:42]} 49. Qf6 {[%emt 0:00:09]} Qc4 {[%emt 0:01:38]} 50. Qf7+ {[%emt 0:00:13]} Kh8 {[%emt 0:00:05]} 51. Qe8+ {[%emt 0:00:06]} Kg7 {[%emt 0:00:07]} 52. Rf7+ {[%emt 0:00:18]} Kh6 {[%emt 0:00:11]} 53. Rf6+ {[%emt 0:00:08]} Kg5 {[%emt 0:00:06]} 54. Qxe6 {[%emt 0:00:03]} 1-0

[Event "15th Governor Cup 2019"]
[Site "Khanty-Mansiysk"]
[Date "2019.11.25"]
[Round "9.17"]
[White "Chekletsov, Ilya"]
[Black "Skvortsov, Andrey"]
[Result "1-0"]
[ECO "A41"]
[WhiteElo "2386"]
[BlackElo "2137"]
[Annotator "NA"]
[PlyCount "111"]
[EventDate "2019.11.19"]
[EventType "swiss"]
[EventCountry "RUS"]
[SourceTitle "playchess.com"]
[Source "ChessBase"]
[SourceQuality "1"]
[TimeControl "5400+30"]

1. d4 {[%emt 0:00:00]} d6 {[%emt 0:00:00]} 2. c4 {[%emt 0:00:00]} e5 {[%emt 0:00:00]} 3. Nc3 {[%emt 0:00:00]} exd4 {[%emt 0:00:00]} 4. Qxd4 {[%emt 0:00:00]} Nf6 {[%emt 0:00:02]} 5. b3 {[%emt 0:00:00]} Nc6 {[%emt 0:00:05]} 6. Qd2 {[%emt 0:00:03]} a5 {[%emt 0:02:26]} 7. Bb2 {[%emt 0:00:07]} a4 {[%emt 0:00:30]} 8. Rd1 {[%emt 0:09:28]} axb3 {[%emt 0:00:19]} 9. axb3 {[%emt 0:00:05]} Bf5 {[%emt 0:09:13]} 10. f3 {[%emt 0:00:21]} Be7 {[%emt 0:03:09]} 11. e4 {[%emt 0:00:10]} Be6 {[%emt 0:00:24]} 12. Bd3 {[%emt 0:19:18]} Nd7 {[%emt 0:01:01]} 13. Nd5 {[%emt 0:03:06]} O-O {[%emt 0:00:44]} 14. Ne2 {[%emt 0:03:06]} Nce5 {[%emt 0:02:48]} 15. Nxe7+ {[%emt 0:03:32]} Qxe7 {[%emt 0:00:07]} 16. Bc2 {[%emt 0:00:30]} Qh4+ {[%emt 0:01:25]} 17. Ng3 {[%emt 0:00:06]} Ra2 {[%emt 0:00:35]} 18. Bb1 {[%emt 0:00:11]} Ra6 {[%emt 0:00:57]} 19. O-O {[%emt 0:00:09]} Rb6 {[%emt 0:01:59]} 20. Qc3 {[%emt 0:04:22]} Nc5 {[%emt 0:02:15]} 21. Bc2 {[%emt 0:00:04]} f6 {[%emt 0:02:44]} 22. f4 {[%emt 0:01:37]} Nc6 {[%emt 0:00:52]} 23. Bc1 {[%emt 0:06:24]} Nb4 {[%emt 0:01:21]} 24. Bb1 {[%emt 0:10:38]} Nc6 {[%emt 0:02:29]} 25. Bc2 {[%emt 0:01:57]} Nb4 {[%emt 0:00:05]} 26. Be3 {[%emt 0:02:37]} Nxc2 {[%emt 0:02:50]} 27. Qxc2 {[%emt 0:00:03]} f5 {[%emt 0:02:13]} 28. exf5 {[%emt 0:01:31]} Bc8 {[%emt 0:00:31]} 29. Rb1 {[%emt 0:00:32]} Ra6 {[%emt 0:00:38]} 30. Bd4 {[%emt 0:01:56]} Ra8 {[%emt 0:03:52]} 31. Rbe1 {[%emt 0:01:31]} Bd7 {[%emt 0:00:44]} 32. b4 {[%emt 0:13:20]} Na6 {[%emt 0:00:19]} 33. f6 {[%emt 0:01:18]} gxf6 {[%emt 0:00:53]} 34. b5 {[%emt 0:00:03]} Nc5 {[%emt 0:01:47]} 35. Bxc5 {[%emt 0:00:23]} dxc5 {[%emt 0:00:08]} 36. Re7 {[%emt 0:00:02]} Rf7 {[%emt 0:01:39]} 37. Rxf7 {[%emt 0:00:26]} Kxf7 {[%emt 0:00:04]} 38. Qd3 {[%emt 0:00:26]} Be6 {[%emt 0:01:55]} 39. Re1 {[%emt 0:05:22]} b6 {[%emt 0:12:33]} 40. h3 {[%emt 0:07:26]} Re8 {[%emt 0:07:31]} 41. Rxe6 {[%emt 0:02:23]} Rxe6 {[%emt 0:00:03]} 42. Qd7+ {[%emt 0:00:02]} Kf8 {[%emt 0:00:09]} 43. Qxe6 {[%emt 0:00:05]} Qxg3 {[%emt 0:00:17]} 44. Qxf6+ {[%emt 0:00:04]} Ke8 {[%emt 0:00:23]} 45. Qh8+ {[%emt 0:00:18]} Kd7 {[%emt 0:00:28]} 46. Qxh7+ {[%emt 0:00:03]} Kd8 {[%emt 0:00:20]} 47. Qe4 {[%emt 0:00:07]} Kc8 {[%emt 0:01:48]} 48. f5 {[%emt 0:02:01]} Qg5 {[%emt 0:01:59]} 49. Kh2 {[%emt 0:00:09]} Kb8 {[%emt 0:00:09]} 50. h4 {[%emt 0:00:24]} Qf6 {[%emt 0:00:08]} 51. Qf4 {[%emt 0:00:10]} Kc8 {[%emt 0:00:19]} 52. Kh3 {[%emt 0:00:39]} Kb8 {[%emt 0:00:15]} 53. h5 {[%emt 0:00:38]} Kb7 {[%emt 0:00:16]} 54. h6 {[%emt 0:00:24]} Qf7 {[%emt 0:00:12]} 55. g4 {[%emt 0:00:45]} c6 {[%emt 0:00:09]} 56. bxc6+ {[%emt 0:00:10]} 1-0

[Event "15th Governor Cup 2019"]
[Site "Khanty-Mansiysk"]
[Date "2019.11.25"]
[Round "9.19"]
[White "Safin, Robert"]
[Black "Mironenko, Galina"]
[Result "1-0"]
[ECO "A40"]
[WhiteElo "2182"]
[BlackElo "2236"]
[Annotator "NA"]
[PlyCount "93"]
[EventDate "2019.11.19"]
[EventType "swiss"]
[EventCountry "RUS"]
[SourceTitle "playchess.com"]
[Source "ChessBase"]
[SourceQuality "1"]
[TimeControl "5400+30"]

1. d4 {[%emt 0:00:00]} Nf6 {[%emt 0:00:00]} 2. c4 {[%emt 0:00:00]} e6 {[%emt 0:00:00]} 3. g3 {[%emt 0:00:00]} d5 {[%emt 0:00:00]} 4. Nf3 {[%emt 0:00:00]} Bb4+ {[%emt 0:00:00]} 5. Bd2 {[%emt 0:00:00]} Be7 {[%emt 0:00:00]} 6. Bg2 {[%emt 0:00:00]} O-O {[%emt 0:00:00]} 7. Qc2 {[%emt 0:00:00]} Nbd7 {[%emt 0:00:21]} 8. O-O {[%emt 0:00:00]} c6 {[%emt 0:00:05]} 9. Rc1 {[%emt 0:00:06]} Ne4 {[%emt 0:04:17]} 10. Nc3 {[%emt 0:13:21]} Nxd2 {[%emt 0:05:51]} 11. Nxd2 {[%emt 0:00:07]} Nf6 {[%emt 0:03:18]} 12. Rd1 {[%emt 0:00:44]} Re8 {[%emt 0:08:29]} 13. e4 {[%emt 0:00:43]} dxe4 {[%emt 0:07:39]} 14. Ndxe4 {[%emt 0:00:07]} Qc7 {[%emt 0:11:34]} 15. Nxf6+ {[%emt 0:02:09]} Bxf6 {[%emt 0:00:09]} 16. Ne4 {[%emt 0:00:04]} Be7 {[%emt 0:03:19]} 17. Qc3 {[%emt 0:08:15]} f5 {[%emt 0:06:49]} 18. Nd2 {[%emt 0:03:36]} Bf6 {[%emt 0:00:22]} 19. Nf3 {[%emt 0:09:18]} c5 {[%emt 0:08:41]} 20. Qa3 {[%emt 0:04:32]} cxd4 {[%emt 0:04:15]} 21. Nxd4 {[%emt 0:00:15]} Bd7 {[%emt 0:04:46]} 22. Rac1 {[%emt 0:03:50]} Red8 {[%emt 0:07:32]} 23. c5 {[%emt 0:04:59]} Bxd4 {[%emt 0:02:44]} 24. Rxd4 {[%emt 0:00:09]} Bc6 {[%emt 0:03:28]} 25. Rcd1 {[%emt 0:06:33]} Bxg2 {[%emt 0:01:50]} 26. Kxg2 {[%emt 0:00:11]} Rxd4 {[%emt 0:02:36]} 27. Rxd4 {[%emt 0:00:05]} Rd8 {[%emt 0:01:53]} 28. Rxd8+ {[%emt 0:03:36]} Qxd8 {[%emt 0:00:05]} 29. Qxa7 {[%emt 0:00:04]} Qd5+ {[%emt 0:00:07]} 30. Kg1 {[%emt 0:05:56]} Qd1+ {[%emt 0:00:07]} 31. Kg2 {[%emt 0:00:05]} Qd5+ {[%emt 0:00:04]} 32. Kh3 {[%emt 0:05:30]} g5 {[%emt 0:03:56]} 33. Qb8+ {[%emt 0:01:15]} Kg7 {[%emt 0:00:39]} 34. Qd6 {[%emt 0:01:33]} Qc4 {[%emt 0:05:51]} 35. Qe5+ {[%emt 0:04:08]} Kf7 {[%emt 0:01:36]} 36. Kg2 {[%emt 0:00:09]} Qa6 {[%emt 0:04:19]} 37. Qc7+ {[%emt 0:01:36]} Kg6 {[%emt 0:00:40]} 38. h3 {[%emt 0:02:05]} h5 {[%emt 0:00:36]} 39. Qc8 {[%emt 0:00:26]} g4 {[%emt 0:00:51]} 40. hxg4 {[%emt 0:02:25]} hxg4 {[%emt 0:00:12]} 41. c6 {[%emt 0:03:21]} Qxa2 {[%emt 0:00:32]} 42. cxb7 {[%emt 0:00:08]} Qd5+ {[%emt 0:00:04]} 43. Kh2 {[%emt 0:00:06]} Qf3 {[%emt 0:00:17]} 44. Qxe6+ {[%emt 0:00:05]} Kh5 {[%emt 0:01:17]} 45. Qb6 {[%emt 0:00:10]} f4 {[%emt 0:00:13]} 46. b8=Q {[%emt 0:00:33]} fxg3+ {[%emt 0:00:07]} 47. Qxg3 {[%emt 0:00:05]} 1-0

[Event "15th Governor Cup 2019"]
[Site "Khanty-Mansiysk"]
[Date "2019.11.25"]
[Round "9.20"]
[White "Ryabov, Georgi"]
[Black "Voskresenskaya, Marta"]
[Result "1-0"]
[ECO "A34"]
[WhiteElo "1887"]
[BlackElo "1859"]
[Annotator "NA"]
[PlyCount "69"]
[EventDate "2019.11.19"]
[EventType "swiss"]
[EventCountry "RUS"]
[SourceTitle "playchess.com"]
[Source "ChessBase"]
[SourceQuality "1"]
[TimeControl "5400+30"]

1. c4 {[%emt 0:00:00]} c5 {[%emt 0:00:06]} 2. g3 {[%emt 0:00:00]} Nf6 {[%emt 0:00:16]} 3. Bg2 {[%emt 0:00:00]} d5 {[%emt 0:00:14]} 4. cxd5 {[%emt 0:03:49]} Nxd5 {[%emt 0:00:08]} 5. Nc3 {[%emt 0:00:09]} Nc7 {[%emt 0:00:09]} 6. Nf3 {[%emt 0:00:05]} Nc6 {[%emt 0:00:07]} 7. O-O {[%emt 0:00:06]} e5 {[%emt 0:00:07]} 8. d3 {[%emt 0:00:08]} Be7 {[%emt 0:01:01]} 9. Ne1 {[%emt 0:02:16]} O-O {[%emt 0:03:58]} 10. Nc2 {[%emt 0:00:46]} Be6 {[%emt 0:03:02]} 11. f4 {[%emt 0:03:35]} exf4 {[%emt 0:04:56]} 12. gxf4 {[%emt 0:00:17]} Qd7 {[%emt 0:01:18]} 13. e4 {[%emt 0:10:43]} Bg4 {[%emt 0:02:57]} 14. Qd2 {[%emt 0:01:39]} Rad8 {[%emt 0:01:47]} 15. Nd5 {[%emt 0:00:16]} Nxd5 {[%emt 0:02:27]} 16. exd5 {[%emt 0:00:41]} Nb4 {[%emt 0:00:43]} 17. Nxb4 {[%emt 0:01:32]} cxb4 {[%emt 0:00:18]} 18. Qe3 {[%emt 0:00:38]} b6 {[%emt 0:03:41]} 19. Qg3 {[%emt 0:02:38]} Bc5+ {[%emt 0:03:43]} 20. Be3 {[%emt 0:02:58]} Bxe3+ {[%emt 0:01:12]} 21. Qxe3 {[%emt 0:00:08]} Rfe8 {[%emt 0:00:13]} 22. Qg3 {[%emt 0:00:10]} Re2 {[%emt 0:17:34]} 23. Rf2 {[%emt 0:04:53]} Rxf2 {[%emt 0:00:23]} 24. Qxf2 {[%emt 0:00:07]} Bh3 {[%emt 0:01:34]} 25. Be4 {[%emt 0:00:39]} f5 {[%emt 0:03:23]} 26. Bf3 {[%emt 0:00:13]} Bg4 {[%emt 0:00:20]} 27. Bg2 {[%emt 0:00:05]} Qb5 {[%emt 0:05:47]} 28. h3 {[%emt 0:03:03]} Bh5 {[%emt 0:12:58]} 29. Qh4 {[%emt 0:00:08]} Re8 {[%emt 0:00:04]} 30. Qxh5 {[%emt 0:00:10]} Qc5+ {[%emt 0:00:04]} 31. Kh1 {[%emt 0:00:38]} Qe3 {[%emt 0:01:24]} 32. Rf1 {[%emt 0:00:37]} g6 {[%emt 0:00:13]} 33. Qf3 {[%emt 0:00:05]} Qd4 {[%emt 0:00:03]} 34. d6 {[%emt 0:01:02]} Qxd6 {[%emt 0:02:34]} 35. Qd5+ {[%emt 0:00:07]} 1-0

[Event "15th Governor Cup 2019"]
[Site "Khanty-Mansiysk"]
[Date "2019.11.25"]
[Round "9.22"]
[White "Martynyuk, Elizaveta"]
[Black "Dorofeeva, Nyurguiaana"]
[Result "1-0"]
[ECO "C54"]
[WhiteElo "2020"]
[BlackElo "1848"]
[Annotator "NA"]
[PlyCount "111"]
[EventDate "2019.11.19"]
[EventType "swiss"]
[EventCountry "RUS"]
[SourceTitle "playchess.com"]
[Source "ChessBase"]
[SourceQuality "1"]
[TimeControl "5400+30"]

1. e4 {[%emt 0:06:25]} e5 {[%emt 0:00:00]} 2. Nf3 {[%emt 0:00:04]} Nc6 {[%emt 0:00:00]} 3. Bc4 {[%emt 0:00:12]} Bc5 {[%emt 0:00:06]} 4. c3 {[%emt 0:00:19]} Nf6 {[%emt 0:00:22]} 5. d3 {[%emt 0:00:07]} O-O {[%emt 0:00:10]} 6. O-O {[%emt 0:00:20]} d5 {[%emt 0:00:39]} 7. exd5 {[%emt 0:00:10]} Nxd5 {[%emt 0:00:06]} 8. Nbd2 {[%emt 0:00:18]} Nb6 {[%emt 0:00:44]} 9. Bb5 {[%emt 0:01:51]} Bd6 {[%emt 0:01:18]} 10. Ne4 {[%emt 0:03:52]} h6 {[%emt 0:01:37]} 11. Re1 {[%emt 0:03:42]} f5 {[%emt 0:04:36]} 12. Qb3+ {[%emt 0:04:49]} Kh8 {[%emt 0:00:33]} 13. Ng3 {[%emt 0:00:15]} Qf6 {[%emt 0:08:08]} 14. Bd2 {[%emt 0:05:04]} Be6 {[%emt 0:06:45]} 15. c4 {[%emt 0:00:22]} Nd7 {[%emt 0:01:30]} 16. Bxc6 {[%emt 0:06:43]} bxc6 {[%emt 0:00:09]} 17. Bc3 {[%emt 0:00:06]} Bf7 {[%emt 0:04:25]} 18. Re2 {[%emt 0:01:38]} Bg6 {[%emt 0:07:24]} 19. Rae1 {[%emt 0:00:27]} Rae8 {[%emt 0:00:27]} 20. Qd1 {[%emt 0:01:32]} h5 {[%emt 0:05:32]} 21. h4 {[%emt 0:00:22]} c5 {[%emt 0:03:07]} 22. Qa4 {[%emt 0:02:08]} Nb6 {[%emt 0:13:19]} 23. Qxa7 {[%emt 0:02:20]} Ra8 {[%emt 0:03:43]} 24. Qb7 {[%emt 0:00:45]} Rfb8 {[%emt 0:01:52]} 25. Qc6 {[%emt 0:12:25]} Be8 {[%emt 0:03:25]} 26. Qxa8 {[%emt 0:00:22]} Rxa8 {[%emt 0:00:21]} 27. Nxe5 {[%emt 0:00:17]} f4 {[%emt 0:10:09]} 28. Nf3 {[%emt 0:00:39]} Qf8 {[%emt 0:00:52]} 29. Nf5 {[%emt 0:00:55]} Qxf5 {[%emt 0:06:48]} 30. Rxe8+ {[%emt 0:00:05]} Rxe8 {[%emt 0:00:04]} 31. Rxe8+ {[%emt 0:00:04]} Bf8 {[%emt 0:02:29]} 32. Ne5 {[%emt 0:02:05]} Kg8 {[%emt 0:01:24]} 33. Rd8 {[%emt 0:00:44]} Kh7 {[%emt 0:02:09]} 34. Nf3 {[%emt 0:01:11]} Be7 {[%emt 0:02:19]} 35. Re8 {[%emt 0:01:36]} Qd7 {[%emt 0:00:43]} 36. Rb8 {[%emt 0:00:13]} Qxd3 {[%emt 0:01:13]} 37. Rb7 {[%emt 0:00:34]} Qd1+ {[%emt 0:02:17]} 38. Kh2 {[%emt 0:00:08]} Bd6 {[%emt 0:00:40]} 39. b3 {[%emt 0:01:13]} Qe2 {[%emt 0:01:20]} 40. a4 {[%emt 0:00:16]} Qxf2 {[%emt 0:03:21]} 41. a5 {[%emt 0:00:12]} Nd7 {[%emt 0:00:08]} 42. a6 {[%emt 0:03:39]} Ne5 {[%emt 0:02:46]} 43. Bxe5 {[%emt 0:00:24]} Bxe5 {[%emt 0:00:03]} 44. a7 {[%emt 0:00:20]} Qg3+ {[%emt 0:00:15]} 45. Kh1 {[%emt 0:00:12]} g5 {[%emt 0:02:13]} 46. a8=Q {[%emt 0:01:10]} gxh4 {[%emt 0:00:34]} 47. Qe8 {[%emt 0:00:20]} Bg7 {[%emt 0:00:43]} 48. Qxh5+ {[%emt 0:00:06]} Kg8 {[%emt 0:00:08]} 49. Rb8+ {[%emt 0:00:07]} Bf8 {[%emt 0:00:06]} 50. Qd5+ {[%emt 0:00:13]} Kg7 {[%emt 0:00:26]} 51. Qe5+ {[%emt 0:00:38]} Kh6 {[%emt 0:00:37]} 52. Rxf8 {[%emt 0:00:13]} h3 {[%emt 0:00:09]} 53. Qh8+ {[%emt 0:00:10]} Kg6 {[%emt 0:00:06]} 54. Qf6+ {[%emt 0:00:06]} Kh5 {[%emt 0:00:10]} 55. Rh8+ {[%emt 0:00:03]} Kg4 {[%emt 0:00:07]} 56. Ne5# {[%emt 0:00:03]} 1-0